[Event "98th Caplin Hastings Masters 2024-25"]
[Site "Hastings"]
[Date "2024.12.29"]
[Round "2.41"]
[White "Zhou, Yang-Fan"]
[Black "Lux, Hugo de Melo"]
[Result "1/2-1/2"]
[ECO "B32"]
[WhiteElo "2424"]
[BlackElo "2327"]
[Annotator "TA"]
[PlyCount "75"]
[EventDate "2024.12.23"]
[EventType "swiss"]
[EventCountry "ENG"]
[SourceTitle "playchess.com"]
[Source "ChessBase"]
[SourceQuality "1"]
[TimeControl "5400+30"]

{[%evp 14,75,31,45,39,27,33,23,38,36,39,21,47,29,18,23,26,31,36,16,25,0,26,-21,22,17,63,42,62,62,60,67,72,64,40,9,32,27,29,4,15,0,0,-28,-20,-15,-25,-20,-14,-62,-32,-59,-41,-49,-42,-47,0,-55,0,-46,0,-46,49,25]} 1. e4 {[%emt 0:00:02]} c5 {[%emt 0:05:39]} 2. Nf3 {[%emt 0:00:12][%cal Bg1f3,Bf3d4,Bd4b5,Bb5a3,Ba3c4][%mdl 32]} Nc6 {[%emt 0:00:07]} 3. d4 {[%emt 0:00:05]} cxd4 {[%emt 0:00:18]} 4. Nxd4 {[%emt 0:00:02]} e5 {[%emt 0:00:07]} 5. Nb5 {[%emt 0:00:04]} d6 {[%emt 0:00:05]} 6. N1c3 {[%emt 0:00:19]} a6 {[%emt 0:00:06]} 7. Na3 {[%emt 0:00:05]} Be7 {[%emt 0:00:04]} 8. Nc4 {[%emt 0:00:48]} b5 {[%emt 0:02:57]} 9. Ne3 {[%emt 0:00:12]} Nf6 {[%emt 0:00:05]} 10. Bd3 {[%emt 0:00:18]} O-O {[%emt 0:02:10]} 11. O-O {[%emt 0:00:06]} Rb8 {[%emt 0:00:42]} 12. Re1 {[%emt 0:04:41]} Bb7 {[%emt 0:06:59]} 13. Nf5 {[%emt 0:22:10]} Nd4 {[%emt 0:20:39]} 14. Nxd4 {[%emt 0:01:33]} exd4 {[%emt 0:00:02]} 15. Ne2 {[%emt 0:00:06]} Qb6 {[%emt 0:07:17][%cal Of8e8]} 16. Ng3 {[%emt 0:00:20]} Rfe8 {[%emt 0:05:09]} 17. a4 {[%emt 0:00:06]} Bf8 {[%emt 0:06:29]} 18. Qd2 {[%emt 0:13:14]} (18. axb5 $142 axb5 19. Bg5) 18... Bc6 {[%emt 0:05:10]} 19. axb5 {[%emt 0:02:24]} axb5 {[%emt 0:00:01]} (19... Bxb5 $11 20. b3 d5) 20. b3 $14 {[%emt 0:03:16]} g6 {[%emt 0:02:35]} 21. Bb2 {[%emt 0:01:20]} Bg7 {[%emt 0:00:07]} 22. Qb4 $1 {[%emt 0:06:26][%csl LRd4,LRd6]} Ng4 {[%emt 0:06:55]} 23. h3 {[%emt 0:17:50]} Ne5 {[%emt 0:00:35]} 24. Rad1 {[%emt 0:00:05]} Qc5 {[%emt 0:11:19]} ({Much worse is} 24... Nxd3 25. Rxd3 Qc5 26. Qd2 $16) 25. Qd2 $1 {[%emt 0:00:02]} (25. Qxd4 $2 {loses.} Nf3+ 26. gxf3 Bxd4 $19) 25... Ba8 {[%emt 0:09:42]} 26. Ne2 {[%emt 0:13:55]} Nc4 {[%emt 0:06:02]} 27. bxc4 {[%emt 0:07:16]} bxc4 {[%emt 0:00:02]} 28. Ba1 {[%emt 0:00:07]} cxd3 {[%emt 0:00:55]} 29. cxd3 {[%emt 0:00:01]} d5 {[%emt 0:00:12]} 30. Rc1 {[%emt 0:02:33]} Qb6 {[%emt 0:00:19]} 31. Ng3 {[%emt 0:02:37]} (31. Red1 $11) 31... h5 {[%emt 0:00:05]} 32. Qf4 {[%emt 0:00:48]} Be5 {[%emt 0:00:35]} 33. Qg5 {[%emt 0:00:28]} Bf6 {[%emt 0:00:09]} 34. Qf4 {[%emt 0:00:18]} Be5 {[%emt 0:00:03]} 35. Qg5 {[%emt 0:00:55]} Bf6 {[%emt 0:03:24]} 36. Qf4 $1 {[%emt 0:00:02]} Be5 {[%emt 0:01:18]} 37. Qg5 Bxg3 {[%emt 0:00:31]} (37... dxe4 $15 38. Nxe4 Qb7) 38. Qxg3 {[%emt 0:01:11]} (38. e5 $5) 1/2-1/2

[Event "98th Caplin Hastings Masters 2024-25"]
[Site "Hastings"]
[Date "2024.12.29"]
[Round "2.42"]
[White "Graham, Oliver"]
[Black "Bhatia, Kanishka"]
[Result "0-1"]
[ECO "C41"]
[WhiteElo "1789"]
[BlackElo "2018"]
[Annotator "RC"]
[PlyCount "80"]
[EventDate "2024.12.23"]
[EventType "swiss"]
[EventCountry "ENG"]
[SourceTitle "playchess.com"]
[Source "ChessBase"]
[SourceQuality "1"]
[TimeControl "5400+30"]

1. e4 {[%emt 0:00:02]} d6 {[%emt 0:00:17]} 2. d4 {[%emt 0:00:09]} Nf6 {[%emt 0:00:10]} 3. Nc3 {[%emt 0:00:14]} Nbd7 {[%emt 0:00:08]} 4. Nf3 {[%emt 0:00:14]} e5 {[%emt 0:00:05]} 5. dxe5 {[%emt 0:00:25]} dxe5 {[%emt 0:00:09]} 6. Bc4 {[%emt 0:00:57]} Be7 {[%emt 0:00:26]} 7. O-O {[%emt 0:02:46]} c6 {[%emt 0:00:37]} 8. a3 {[%emt 0:00:55]} Qc7 {[%emt 0:00:35]} 9. Bg5 {[%emt 0:00:42]} Nf8 {[%emt 0:01:35]} 10. h3 {[%emt 0:00:52]} h6 {[%emt 0:01:39]} 11. Be3 {[%emt 0:01:16]} g5 {[%emt 0:01:35]} 12. Nh2 {[%emt 0:01:39]} Ng6 {[%emt 0:01:11]} 13. Re1 {[%emt 0:02:41]} Rg8 {[%emt 0:02:01]} 14. Ng4 {[%emt 0:03:50]} Rh8 {[%emt 0:05:36]} 15. Nxf6+ {[%emt 0:00:37]} Bxf6 {[%emt 0:00:07]} 16. Qf3 {[%emt 0:01:36]} Qe7 {[%emt 0:00:54]} 17. Bb3 {[%emt 0:00:50]} Nh4 {[%emt 0:04:39]} 18. Qh5 {[%emt 0:02:26]} b6 {[%emt 0:05:48]} 19. a4 {[%emt 0:05:42]} Rg8 {[%emt 0:02:09]} 20. f3 {[%emt 0:03:07]} Ng6 {[%emt 0:01:32]} 21. a5 {[%emt 0:00:50]} b5 {[%emt 0:00:34]} 22. a6 {[%emt 0:00:41]} Nf4 {[%emt 0:00:53]} 23. Bxf4 {[%emt 0:00:15]} gxf4 {[%emt 0:00:07]} 24. Qxh6 {[%emt 0:02:20]} Rh8 {[%emt 0:01:30]} 25. Qxh8+ {[%emt 0:01:48]} Bxh8 {[%emt 0:00:08]} 26. Red1 {[%emt 0:00:40]} Bd7 {[%emt 0:00:14]} 27. Rd2 {[%emt 0:00:45]} O-O-O {[%emt 0:00:55]} 28. Rad1 {[%emt 0:00:44]} Qc5+ {[%emt 0:00:48]} 29. Kh1 {[%emt 0:01:27]} Qe7 {[%emt 0:01:48]} 30. Ne2 {[%emt 0:01:45]} Bf6 {[%emt 0:00:32]} 31. c4 {[%emt 0:01:03]} Qb4 {[%emt 0:00:19]} 32. Ba2 {[%emt 0:01:04]} Be6 {[%emt 0:00:13]} 33. Rxd8+ {[%emt 0:02:02]} Bxd8 {[%emt 0:00:18]} 34. b3 {[%emt 0:03:40]} bxc4 {[%emt 0:00:18]} 35. bxc4 {[%emt 0:00:22]} Bxc4 {[%emt 0:00:38]} 36. Bxc4 {[%emt 0:00:36]} Qxc4 {[%emt 0:00:08]} 37. Ng1 {[%emt 0:00:19]} Bb6 {[%emt 0:00:15]} 38. h4 {[%emt 0:00:24]} Qxa6 {[%emt 0:00:17]} 39. h5 {[%emt 0:02:31]} Bd4 {[%emt 0:00:12]} 40. Kh2 {[%emt 0:00:55]} c5 {[%emt 0:00:14]} 0-1

[Event "98th Caplin Hastings Masters 2024-25"]
[Site "Hastings"]
[Date "2024.12.29"]
[Round "2.43"]
[White "Prudent, Sylvio"]
[Black "Sciupokas, Arunas"]
[Result "0-1"]
[ECO "A04"]
[WhiteElo "1780"]
[BlackElo "1969"]
[Annotator "NA RC"]
[PlyCount "70"]
[EventDate "2024.12.23"]
[EventType "swiss"]
[EventCountry "ENG"]
[SourceTitle "playchess.com"]
[Source "ChessBase"]
[SourceQuality "1"]
[TimeControl "5400+30"]

1. Nf3 {[%emt 0:02:53]} Nc6 {[%emt 0:00:21]} 2. b3 {[%emt 0:00:12]} e5 {[%emt 0:01:29]} 3. Nc3 {[%emt 0:02:17]} Nf6 {[%emt 0:00:47]} 4. e4 {[%emt 0:01:26]} Bc5 {[%emt 0:05:34]} 5. Bb5 {[%emt 0:02:46]} O-O {[%emt 0:03:35]} 6. O-O {[%emt 0:00:07]} d6 {[%emt 0:02:57]} 7. Bxc6 {[%emt 0:03:01]} bxc6 {[%emt 0:00:15]} 8. d4 {[%emt 0:01:32]} exd4 {[%emt 0:08:18]} 9. Nxd4 {[%emt 0:00:11]} Ba6 {[%emt 0:03:56]} 10. Re1 {[%emt 0:00:28]} Ng4 {[%emt 0:09:38]} 11. h3 {[%emt 0:04:39]} Qf6 {[%emt 0:08:53]} 12. Be3 {[%emt 0:11:18]} Nxe3 {[%emt 0:01:52]} 13. fxe3 {[%emt 0:00:07]} Bb4 {[%emt 0:02:45]} 14. Qd2 {[%emt 0:01:23]} c5 {[%emt 0:00:43]} 15. Rf1 {[%emt 0:04:05]} Bxc3 {[%emt 0:07:44]} 16. Qxc3 {[%emt 0:01:57]} cxd4 {[%emt 0:00:13]} 17. Rxf6 {[%emt 0:01:16]} dxc3 {[%emt 0:00:06]} 18. Rf5 {[%emt 0:00:22]} Rfe8 {[%emt 0:00:47]} 19. Kf2 {[%emt 0:01:12]} Bb7 {[%emt 0:02:13]} 20. g3 {[%emt 0:08:38]} Bxe4 {[%emt 0:01:28]} 21. Ra5 {[%emt 0:00:40]} Re5 {[%emt 0:03:46]} 22. Ra4 {[%emt 0:01:11]} f5 {[%emt 0:00:58]} 23. Rd1 {[%emt 0:00:35]} Rc5 {[%emt 0:00:58]} 24. Rc1 {[%emt 0:06:59]} Kf7 {[%emt 0:02:26]} 25. g4 {[%emt 0:01:40]} g6 {[%emt 0:00:21]} 26. Kg3 {[%emt 0:00:36]} Ke6 {[%emt 0:01:18]} 27. Kf4 {[%emt 0:00:15]} h6 {[%emt 0:01:20]} 28. h4 {[%emt 0:00:34]} g5+ {[%emt 0:07:11]} 29. hxg5 {[%emt 0:00:32]} hxg5+ {[%emt 0:00:03]} 30. Kg3 {[%emt 0:00:14]} d5 {[%emt 0:01:43]} 31. Ra6+ {[%emt 0:00:20]} Ke7 {[%emt 0:01:05]} 32. Rh6 {[%emt 0:02:37]} Rf8 {[%emt 0:01:06]} 33. Ra6 {[%emt 0:02:40]} f4+ {[%emt 0:00:53]} 34. Kf2 {[%emt 0:00:39]} Rh8 {[%emt 0:00:43]} 35. exf4 {[%emt 0:00:41]} gxf4 {[%emt 0:00:21]} 0-1

[Event "98th Caplin Hastings Masters 2024-25"]
[Site "Hastings"]
[Date "2024.12.29"]
[Round "2.44"]
[White "Bilandzic, Ante"]
[Black "Bryant, Marc A"]
[Result "1-0"]
[ECO "D02"]
[WhiteElo "1912"]
[BlackElo "1825"]
[Annotator "NA RC"]
[PlyCount "57"]
[EventDate "2024.12.23"]
[EventType "swiss"]
[EventCountry "ENG"]
[SourceTitle "playchess.com"]
[Source "ChessBase"]
[SourceQuality "1"]
[TimeControl "5400+30"]

1. d4 {[%emt 0:00:02]} d5 {[%emt 0:01:44]} 2. Nf3 {[%emt 0:00:05]} Nc6 {[%emt 0:00:42]} 3. Bf4 {[%emt 0:00:09]} Bf5 {[%emt 0:00:14]} 4. e3 {[%emt 0:00:48]} e6 {[%emt 0:00:22]} 5. Bb5 {[%emt 0:00:43]} a6 {[%emt 0:00:11]} 6. Bxc6+ {[%emt 0:00:07]} bxc6 {[%emt 0:00:06]} 7. Ne5 {[%emt 0:00:55]} Ne7 {[%emt 0:01:51]} 8. c4 {[%emt 0:02:41]} f6 {[%emt 0:00:52]} 9. Nf3 {[%emt 0:00:28]} g5 {[%emt 0:05:34]} 10. Bg3 {[%emt 0:00:32]} h5 {[%emt 0:00:27]} 11. h3 {[%emt 0:01:34]} Bxb1 {[%emt 0:03:28]} 12. Rxb1 {[%emt 0:00:55]} Nf5 {[%emt 0:00:07]} 13. Bh2 {[%emt 0:04:33]} Bb4+ {[%emt 0:00:28]} 14. Nd2 {[%emt 0:00:33]} dxc4 {[%emt 0:00:33]} 15. O-O {[%emt 0:03:20]} Bxd2 {[%emt 0:02:27]} 16. Qxd2 {[%emt 0:00:01]} c5 {[%emt 0:00:41]} 17. Qc2 {[%emt 0:02:09]} cxd4 {[%emt 0:05:20]} 18. Qxc4 {[%emt 0:04:14]} Qd7 {[%emt 0:01:34]} 19. exd4 {[%emt 0:01:08]} g4 {[%emt 0:01:31]} 20. Rfe1 {[%emt 0:04:47]} Nxd4 {[%emt 0:08:33]} 21. Rbd1 {[%emt 0:02:18]} Rd8 {[%emt 0:00:05]} 22. Rxd4 {[%emt 0:01:42]} Qxd4 {[%emt 0:00:32]} 23. Qxe6+ {[%emt 0:01:00]} Kf8 {[%emt 0:00:23]} 24. Bxc7 {[%emt 0:01:10]} Kg7 {[%emt 0:01:24]} 25. Bxd8 {[%emt 0:05:09]} Rxd8 {[%emt 0:00:16]} 26. Qf5 {[%emt 0:01:48]} Rd5 {[%emt 0:01:10]} 27. Re7+ {[%emt 0:00:27]} Kf8 {[%emt 0:03:47]} 28. Qh7 {[%emt 0:00:08]} a5 {[%emt 0:03:15]} 29. Qf7# {[%emt 0:00:01]} 1-0

[Event "98th Caplin Hastings Masters 2024-25"]
[Site "Hastings"]
[Date "2024.12.29"]
[Round "2.45"]
[White "Vaidyanathan, Adithya"]
[Black "Wilson, Matthew R"]
[Result "1-0"]
[ECO "D58"]
[WhiteElo "1904"]
[BlackElo "1766"]
[Annotator "NA RC"]
[PlyCount "99"]
[EventDate "2024.12.23"]
[EventType "swiss"]
[EventCountry "ENG"]
[SourceTitle "playchess.com"]
[Source "ChessBase"]
[SourceQuality "1"]
[TimeControl "5400+30"]

1. d4 {[%emt 0:00:03]} d5 {[%emt 0:00:07]} 2. Nf3 {[%emt 0:00:05]} Nf6 {[%emt 0:00:16]} 3. c4 {[%emt 0:00:05]} e6 {[%emt 0:00:08]} 4. Nc3 {[%emt 0:00:03]} Be7 {[%emt 0:01:32]} 5. Bg5 {[%emt 0:00:05]} h6 {[%emt 0:00:15]} 6. Bh4 {[%emt 0:00:03]} b6 {[%emt 0:04:26]} 7. cxd5 {[%emt 0:00:12]} exd5 {[%emt 0:00:50]} 8. e3 {[%emt 0:00:09]} O-O {[%emt 0:01:03]} 9. Bd3 {[%emt 0:00:14]} Bb7 {[%emt 0:03:48]} 10. O-O {[%emt 0:00:14]} Nbd7 {[%emt 0:01:23]} 11. Rc1 {[%emt 0:00:08]} c5 {[%emt 0:00:41]} 12. dxc5 {[%emt 0:00:45]} bxc5 {[%emt 0:02:13]} 13. Bf5 {[%emt 0:02:06]} Re8 {[%emt 0:08:45]} 14. Qb3 {[%emt 0:04:21]} Qb6 {[%emt 0:04:23]} 15. Nd2 {[%emt 0:15:03]} Rad8 {[%emt 0:08:40]} 16. Rfd1 {[%emt 0:06:47]} Ne5 {[%emt 0:08:44]} 17. Qxb6 {[%emt 0:11:22]} axb6 {[%emt 0:00:12]} 18. Bxf6 {[%emt 0:00:06]} Bxf6 {[%emt 0:00:43]} 19. Na4 {[%emt 0:00:10]} Ra8 {[%emt 0:05:40]} 20. Nxb6 {[%emt 0:00:48]} Rxa2 {[%emt 0:00:28]} 21. Rxc5 {[%emt 0:00:17]} Rd8 {[%emt 0:06:40]} 22. Nf1 {[%emt 0:03:54]} g6 {[%emt 0:02:39]} 23. Bc8 {[%emt 0:05:39]} Bxc8 {[%emt 0:02:28]} 24. Rxc8 {[%emt 0:00:53]} Rxc8 {[%emt 0:02:47]} 25. Nxc8 {[%emt 0:00:04]} Rxb2 {[%emt 0:01:05]} 26. Rxd5 {[%emt 0:00:07]} h5 {[%emt 0:06:34]} 27. Nd6 {[%emt 0:00:57]} Rb4 {[%emt 0:04:08]} 28. Nd2 {[%emt 0:05:13]} Ng4 {[%emt 0:03:54]} 29. h3 {[%emt 0:02:00]} Ne5 {[%emt 0:02:49]} 30. Kf1 {[%emt 0:01:00]} Ra4 {[%emt 0:03:03]} 31. Ke2 {[%emt 0:00:58]} Nc6 {[%emt 0:00:40]} 32. f4 {[%emt 0:01:56]} Ra2 {[%emt 0:01:07]} 33. Rc5 {[%emt 0:01:45]} Na5 {[%emt 0:01:13]} 34. Rc8+ {[%emt 0:00:45]} Kh7 {[%emt 0:00:33]} 35. N6e4 {[%emt 0:01:10]} Kg7 {[%emt 0:02:23]} 36. Kf3 {[%emt 0:05:04]} Nb7 {[%emt 0:02:56]} 37. Rc7 {[%emt 0:00:47]} Nd8 {[%emt 0:00:27]} 38. Rd7 {[%emt 0:00:21]} Ne6 {[%emt 0:01:12]} 39. Nxf6 {[%emt 0:01:01]} Kxf6 {[%emt 0:00:06]} 40. Ne4+ {[%emt 0:00:04]} Kg7 {[%emt 0:01:47]} 41. Nd6 {[%emt 0:00:07]} g5 {[%emt 0:01:04]} 42. Rxf7+ {[%emt 0:00:38]} Kg8 {[%emt 0:00:17]} 43. Rf6 {[%emt 0:00:17]} g4+ {[%emt 0:01:51]} 44. hxg4 {[%emt 0:00:13]} hxg4+ {[%emt 0:00:03]} 45. Kxg4 {[%emt 0:00:07]} Ng7 {[%emt 0:00:33]} 46. Kf3 {[%emt 0:00:08]} Nh5 {[%emt 0:01:50]} 47. Rh6 {[%emt 0:00:12]} Ng7 {[%emt 0:00:58]} 48. g4 {[%emt 0:00:07]} Ra6 {[%emt 0:00:23]} 49. Nf5 {[%emt 0:00:15]} Ra1 {[%emt 0:00:09]} 50. Rg6 {[%emt 0:00:04]} 1-0

[Event "98th Caplin Hastings Masters 2024-25"]
[Site "Hastings"]
[Date "2024.12.29"]
[Round "2.46"]
[White "Vaidyanathan, Sathya"]
[Black "Miller, Daniel"]
[Result "1/2-1/2"]
[ECO "B23"]
[WhiteElo "1908"]
[BlackElo "1789"]
[Annotator "NA RC"]
[PlyCount "75"]
[EventDate "2024.12.23"]
[EventType "swiss"]
[EventCountry "ENG"]
[SourceTitle "playchess.com"]
[Source "ChessBase"]
[SourceQuality "1"]
[TimeControl "5400+30"]

1. e4 {[%emt 0:00:03]} c5 {[%emt 0:00:03]} 2. Nc3 {[%emt 0:00:03]} d6 {[%emt 0:00:03]} 3. f4 {[%emt 0:00:04]} g6 {[%emt 0:00:03]} 4. Nf3 {[%emt 0:04:19]} Bg7 {[%emt 0:00:06]} 5. Bc4 {[%emt 0:00:10]} Nc6 {[%emt 0:00:06]} 6. O-O {[%emt 0:00:22]} e6 {[%emt 0:00:22]} 7. d3 {[%emt 0:00:29]} Nge7 {[%emt 0:00:09]} 8. Bd2 {[%emt 0:00:46]} Nd4 {[%emt 0:02:54]} 9. Nxd4 {[%emt 0:01:27]} Bxd4+ {[%emt 0:01:53]} 10. Kh1 {[%emt 0:02:56]} O-O {[%emt 0:01:54]} 11. Qe1 {[%emt 0:01:55]} d5 {[%emt 0:05:47]} 12. Bb3 {[%emt 0:01:35]} Bg7 {[%emt 0:01:04]} 13. Rd1 {[%emt 0:04:01]} f5 {[%emt 0:02:44]} 14. e5 {[%emt 0:03:21]} a6 {[%emt 0:02:02]} 15. a4 {[%emt 0:01:06]} b6 {[%emt 0:00:53]} 16. Ne2 {[%emt 0:03:32]} d4 {[%emt 0:05:38]} 17. Qg3 {[%emt 0:05:39]} Nc6 {[%emt 0:02:14]} 18. Be1 {[%emt 0:08:03]} Re8 {[%emt 0:14:53]} 19. c3 {[%emt 0:03:50]} Bb7 {[%emt 0:05:32]} 20. Qh3 {[%emt 0:04:21]} Qd7 {[%emt 0:12:48]} 21. Bh4 {[%emt 0:03:55]} Kf7 {[%emt 0:02:23]} 22. Kg1 {[%emt 0:03:49]} h5 {[%emt 0:03:41]} 23. Bg5 {[%emt 0:04:26]} Na5 {[%emt 0:07:26]} 24. Bc2 {[%emt 0:01:26]} Rac8 {[%emt 0:01:49]} 25. Qh4 {[%emt 0:03:40]} Bf8 {[%emt 0:05:37]} 26. Bf6 {[%emt 0:07:16]} Bg7 {[%emt 0:05:12]} 27. Bxg7 {[%emt 0:04:55]} Kxg7 {[%emt 0:00:11]} 28. Ng3 {[%emt 0:07:52]} Qd5 {[%emt 0:05:22]} 29. Nxh5+ {[%emt 0:12:55]} gxh5 {[%emt 0:01:24]} 30. Qg5+ {[%emt 0:00:23]} Kf7 {[%emt 0:04:53]} 31. Qf6+ {[%emt 0:00:35]} Kg8 {[%emt 0:00:04]} 32. Rf3 {[%emt 0:00:59]} h4 {[%emt 0:00:06]} 33. Qg5+ {[%emt 0:02:17]} Kf7 {[%emt 0:00:14]} 34. Qf6+ {[%emt 0:02:59]} Kg8 {[%emt 0:00:06]} 35. Qg6+ {[%emt 0:01:52]} Kf8 {[%emt 0:00:21]} 36. Qf6+ {[%emt 0:00:36]} Kg8 {[%emt 0:00:07]} 37. Qg6+ {[%emt 0:00:02]} Kf8 {[%emt 0:00:09]} 38. Qf6+ {[%emt 0:01:16]} 1/2-1/2

[Event "98th Caplin Hastings Masters 2024-25"]
[Site "Hastings"]
[Date "2024.12.29"]
[Round "2.47"]
[White "Keely, Leo A"]
[Black "Swiatkowski, Dominik"]
[Result "1-0"]
[ECO "C97"]
[WhiteElo "1899"]
[BlackElo "1744"]
[Annotator "NA RC"]
[PlyCount "107"]
[EventDate "2024.12.23"]
[EventType "swiss"]
[EventCountry "ENG"]
[SourceTitle "playchess.com"]
[Source "ChessBase"]
[SourceQuality "1"]
[TimeControl "5400+30"]

1. e4 {[%emt 0:00:04]} e5 {[%emt 0:00:04]} 2. Nf3 {[%emt 0:00:10]} Nc6 {[%emt 0:00:04]} 3. Bb5 {[%emt 0:00:15]} a6 {[%emt 0:00:05]} 4. Ba4 {[%emt 0:00:13]} Nf6 {[%emt 0:00:04]} 5. O-O {[%emt 0:00:28]} Be7 {[%emt 0:00:05]} 6. Re1 {[%emt 0:00:35]} b5 {[%emt 0:00:05]} 7. Bb3 {[%emt 0:00:12]} d6 {[%emt 0:00:06]} 8. c3 {[%emt 0:04:02]} O-O {[%emt 0:00:17]} 9. h3 {[%emt 0:00:09]} Na5 {[%emt 0:00:03]} 10. Bc2 {[%emt 0:00:12]} c5 {[%emt 0:00:05]} 11. d4 {[%emt 0:00:38]} Qc7 {[%emt 0:00:06]} 12. dxe5 {[%emt 0:07:08]} dxe5 {[%emt 0:01:05]} 13. Nbd2 {[%emt 0:00:14]} c4 {[%emt 0:00:04]} 14. Nf1 {[%emt 0:00:58]} Rd8 {[%emt 0:02:09]} 15. Qe2 {[%emt 0:00:23]} Nb7 {[%emt 0:01:06]} 16. Bg5 {[%emt 0:06:08]} Nc5 {[%emt 0:09:47]} 17. Rad1 {[%emt 0:04:56]} Bb7 {[%emt 0:08:37]} 18. Ng3 {[%emt 0:07:06]} Ne6 {[%emt 0:19:17]} 19. Bc1 {[%emt 0:05:52]} Bc5 {[%emt 0:21:00]} 20. Ng5 {[%emt 0:08:37]} Nf4 {[%emt 0:24:19]} 21. Bxf4 {[%emt 0:03:48]} exf4 {[%emt 0:00:13]} 22. Nf5 {[%emt 0:00:07]} h6 {[%emt 0:00:39]} 23. Nf3 {[%emt 0:01:10]} Rxd1 {[%emt 0:05:20]} 24. Qxd1 {[%emt 0:06:55]} Re8 {[%emt 0:05:02]} 25. e5 {[%emt 0:02:01]} Bxf3 {[%emt 0:01:42]} 26. Qxf3 {[%emt 0:00:13]} Rxe5 {[%emt 0:00:40]} 27. Rd1 {[%emt 0:05:09]} Re8 {[%emt 0:01:15]} 28. a4 {[%emt 0:01:42]} b4 {[%emt 0:00:37]} 29. cxb4 {[%emt 0:00:47]} Bxb4 {[%emt 0:00:10]} 30. Nd4 {[%emt 0:04:24]} Bc5 {[%emt 0:00:49]} 31. b3 {[%emt 0:06:11]} cxb3 {[%emt 0:00:25]} 32. Bxb3 {[%emt 0:00:57]} Bxd4 {[%emt 0:00:34]} 33. Rxd4 {[%emt 0:00:29]} Re1+ {[%emt 0:00:28]} 34. Kh2 {[%emt 0:00:24]} Qc1 {[%emt 0:00:31]} 35. Rd1 {[%emt 0:01:20]} Rxd1 {[%emt 0:00:15]} 36. Bxd1 {[%emt 0:01:46]} Qc8 {[%emt 0:00:48]} 37. Qxf4 {[%emt 0:01:46]} Nd5 {[%emt 0:00:26]} 38. Qf3 {[%emt 0:01:38]} Qc7+ {[%emt 0:00:34]} 39. g3 {[%emt 0:00:08]} Qe5 {[%emt 0:00:30]} 40. Bb3 {[%emt 0:00:35]} Nf6 {[%emt 0:00:30]} 41. Qa8+ {[%emt 0:03:16]} Kh7 {[%emt 0:00:26]} 42. Qxa6 {[%emt 0:00:56]} Qb2 {[%emt 0:00:35]} 43. Qd3+ {[%emt 0:00:11]} g6 {[%emt 0:00:12]} 44. Kg2 {[%emt 0:00:54]} Ne4 {[%emt 0:00:49]} 45. Qf3 {[%emt 0:00:56]} f5 {[%emt 0:00:19]} 46. Qe3 {[%emt 0:01:08]} h5 {[%emt 0:00:30]} 47. h4 {[%emt 0:01:25]} Qe5 {[%emt 0:00:34]} 48. Qa7+ {[%emt 0:00:31]} Kh6 {[%emt 0:00:25]} 49. a5 {[%emt 0:01:57]} Nf6 {[%emt 0:00:35]} 50. Qe3+ {[%emt 0:00:23]} Qxe3 {[%emt 0:00:17]} 51. fxe3 {[%emt 0:00:07]} Ne8 {[%emt 0:00:42]} 52. a6 {[%emt 0:00:10]} Nc7 {[%emt 0:00:08]} 53. a7 {[%emt 0:00:05]} g5 {[%emt 0:00:13]} 54. Bd5 {[%emt 0:00:14]} 1-0

[Event "98th Caplin Hastings Masters 2024-25"]
[Site "Hastings"]
[Date "2024.12.29"]
[Round "2.48"]
[White "Han, Yongsu"]
[Black "Stokes, Stephen"]
[Result "0-1"]
[ECO "B22"]
[WhiteElo "1718"]
[BlackElo "1866"]
[Annotator "NA RC"]
[PlyCount "98"]
[EventDate "2024.12.23"]
[EventType "swiss"]
[EventCountry "ENG"]
[SourceTitle "playchess.com"]
[Source "ChessBase"]
[SourceQuality "1"]
[TimeControl "5400+30"]

1. e4 {[%emt 0:00:03]} c5 {[%emt 0:00:10]} 2. c3 {[%emt 0:00:14]} d5 {[%emt 0:00:09]} 3. exd5 {[%emt 0:00:06]} Qxd5 {[%emt 0:00:09]} 4. d4 {[%emt 0:00:05]} Nc6 {[%emt 0:01:04]} 5. Nf3 {[%emt 0:00:14]} Nf6 {[%emt 0:02:29]} 6. Bd3 {[%emt 0:04:33]} Bg4 {[%emt 0:03:21]} 7. Be3 {[%emt 0:02:19]} Bxf3 {[%emt 0:01:42]} 8. Qxf3 {[%emt 0:01:57]} Qxf3 {[%emt 0:00:33]} 9. gxf3 {[%emt 0:00:04]} cxd4 {[%emt 0:01:45]} 10. cxd4 {[%emt 0:01:12]} O-O-O {[%emt 0:03:00]} 11. Nc3 {[%emt 0:04:26]} Nxd4 {[%emt 0:04:41]} 12. O-O-O {[%emt 0:01:51]} e6 {[%emt 0:03:50]} 13. Be4 {[%emt 0:13:15]} Nxe4 {[%emt 0:01:42]} 14. fxe4 {[%emt 0:00:36]} Nc6 {[%emt 0:04:07]} 15. Rxd8+ {[%emt 0:03:32]} Kxd8 {[%emt 0:00:14]} 16. Rd1+ {[%emt 0:00:29]} Kc8 {[%emt 0:00:47]} 17. Nb5 {[%emt 0:07:38]} a6 {[%emt 0:02:27]} 18. Nd6+ {[%emt 0:07:12]} Bxd6 {[%emt 0:00:36]} 19. Rxd6 {[%emt 0:00:04]} Rd8 {[%emt 0:00:35]} 20. Rxd8+ {[%emt 0:00:52]} Kxd8 {[%emt 0:00:08]} 21. f4 {[%emt 0:02:55]} e5 {[%emt 0:01:53]} 22. f5 {[%emt 0:03:10]} g6 {[%emt 0:01:52]} 23. Kc2 {[%emt 0:03:23]} gxf5 {[%emt 0:00:45]} 24. exf5 {[%emt 0:00:13]} Ne7 {[%emt 0:12:20]} 25. Bg5 {[%emt 0:10:57]} Kd7 {[%emt 0:00:00]} 26. Bf6 {[%emt 0:17:42]} e4 {[%emt 0:00:00]} 27. Kb3 {[%emt 0:02:08]} Nxf5 {[%emt 0:00:00]} 28. Kc4 {[%emt 0:00:27]} Ke6 {[%emt 0:00:00]} 29. Bc3 {[%emt 0:00:32]} Nh4 {[%emt 0:01:52]} 30. Kc5 {[%emt 0:04:25]} Nf3 {[%emt 0:01:34]} 31. Kb6 {[%emt 0:00:00]} e3 {[%emt 0:02:21]} 32. Kxb7 {[%emt 0:00:17]} e2 {[%emt 0:00:33]} 33. Kxa6 {[%emt 0:00:21]} e1=Q {[%emt 0:00:21]} 34. Bxe1 {[%emt 0:00:08]} Nxe1 {[%emt 0:00:04]} 35. b4 {[%emt 0:02:04]} f5 {[%emt 0:03:25]} 36. b5 {[%emt 0:02:42]} f4 {[%emt 0:01:20]} 37. b6 {[%emt 0:00:45]} Nd3 {[%emt 0:02:09]} 38. Kb5 {[%emt 0:02:43]} Ne5 {[%emt 0:02:27]} 39. b7 {[%emt 0:01:02]} Nd7 {[%emt 0:00:06]} 40. Kc4 {[%emt 0:00:06]} Ke5 {[%emt 0:01:50]} 41. Kc3 {[%emt 0:01:22]} Ke4 {[%emt 0:00:32]} 42. Kd2 {[%emt 0:00:14]} Kf3 {[%emt 0:00:22]} 43. a4 {[%emt 0:00:11]} Kg2 {[%emt 0:00:27]} 44. a5 {[%emt 0:00:26]} Nb8 {[%emt 0:00:17]} 45. Kc3 {[%emt 0:02:51]} f3 {[%emt 0:00:08]} 46. Kd4 {[%emt 0:00:06]} f2 {[%emt 0:00:08]} 47. Kc5 {[%emt 0:00:03]} f1=Q {[%emt 0:00:24]} 48. Kb6 {[%emt 0:00:05]} Qa6+ {[%emt 0:01:02]} 49. Kc7 {[%emt 0:00:34]} Qa7 {[%emt 0:00:33]} 0-1